bitfinex/quotes_ETHUSD_20251026
["timestamp","ask_amount","ask_price","bid_price","bid_amount"]
[1761479041891,1.35369721,4044.5,4042.4,0.36269875]
[1761479042090,1.35369721,4044.5,4042.5,0.25454827]
[1761479042404,1.35369721,4044.5,4042.4,0.46713777]
[1761479042405,1.35369721,4044.5,4042.4,0.4424]
[1761479043193,1.35369721,4044.5,4042.5,0.02473716]
[1761479043381,1.35369721,4044.5,4042.4,0.4424]
[1761479043577,1.35369721,4044.5,4042.5,0.02473716]
[1761479043775,1.35369721,4044.5,4042.4,0.4424]
[1761479043995,1.35369721,4044.5,4042.5,0.02473716]
[1761479044183,1.48906693,4044.5,4042.6,0.02473655]
[1761479044385,0.50688,4044.4,4042.4,0.4424]
[1761479044696,0.92628,4044.4,4042.4,0.4424]
[1761479045000,0.92628,4044.4,4040.9,0.4424]
[1761479045175,0.50688,4044.2,4040.1,0.4424]
[1761479045366,0.50688,4044.0,4040.1,0.4424]
[1761479045567,0.50688,4043.8,4040.1,0.4424]
[1761479045973,0.50688,4043.6,4040.1,0.4424]
[1761479046167,0.50688,4043.6,4039.4,0.4424]
[1761479046369,0.50688,4041.8,4041.3,0.124]
[1761479046597,0.50688,4041.8,4039.4,0.4424]
[1761479046804,0.143316,4044.1,4038.7,0.4424]
[1761479046805,0.50688,4041.6,4038.7,0.4424]
[1761479047005,0.50688,4041.4,4038.7,0.4424]
[1761479047225,0.50688,4041.2,4038.7,0.4424]
[1761479047738,0.50688,4041.2,4038.8,0.02475982]
[1761479048082,0.50688,4041.0,4037.7,1.63799361]
[1761479048315,0.50688,4041.0,4037.8,0.02476596]
[1761479048524,0.4164,4040.9,4037.6,0.46816718]
[1761479048693,0.50688,4040.8,4037.9,0.02476534]
[1761479048891,0.50688,4040.8,4037.0,1.63799361]
[1761479049134,0.50688,4040.8,4036.9,0.4434]
[1761479049135,0.50688,4040.6,4037.1,0.20813936]
[1761479049304,0.50688,4040.6,4037.4,1.63799361]
[1761479049487,0.143316,4041.3,4037.1,0.23290961]
[1761479049488,0.50688,4040.4,4037.5,1.66276141]
[1761479049687,0.50688,4040.4,4037.5,1.63799361]
[1761479049889,0.50688,4040.2,4037.3,1.63799361]
[1761479050126,0.50688,4040.2,4037.3,0.44653223]
[1761479050440,0.50688,4040.0,4036.8,1.63799361]
[1761479050619,0.50688,4040.0,4036.7,2.08139361]
[1761479050918,0.143316,4041.3,4036.7,2.08139361]
[1761479050919,0.50688,4039.8,4036.8,1.63799361]
[1761479051110,0.50688,4039.8,4036.6,0.22]
[1761479051111,0.50688,4039.8,4037.1,1.63799361]
[1761479051416,0.50688,4039.6,4037.2,1.84861012]
[1761479051714,0.50688,4039.6,4037.2,0.21061651]
[1761479051892,0.50688,4039.4,4036.4,0.38694096]
[1761479052296,0.143316,4041.3,4036.5,0.80975724]
[1761479052497,0.2173,4043.0,4038.1,1.63799361]
[1761479052704,0.3413,4043.1,4039.6,1.63799361]
[1761479052904,0.3413,4043.1,4040.3,1.63799361]
[1761479053104,0.3413,4043.1,4040.4,0.02475002]
[1761479053310,0.3413,4043.1,4040.6,1.63799361]
[1761479053513,0.084,4044.0,4041.0,1.63799361]
[1761479053697,0.084,4044.0,4041.1,0.02474573]
[1761479053698,0.3413,4043.3,4041.1,0.02474573]
[1761479053885,0.3413,4043.3,4041.0,0.02474634]
[1761479054109,0.3413,4042.6,4040.5,0.16627436]
[1761479054331,0.2173,4042.1,4040.1,1.63799361]
[1761479054531,0.2173,4042.1,4039.8,1.5552]
[1761479054532,0.3413,4042.6,4040.2,2.08139361]
[1761479054930,0.2173,4042.7,4039.7,1.5552]
[1761479054931,0.3413,4042.1,4040.1,1.63799361]
[1761479055132,0.3413,4042.1,4040.2,0.46815124]
[1761479055450,0.2173,4042.7,4040.3,1.63799361]
[1761479055647,0.2173,4042.7,4040.5,1.63799361]
[1761479055854,0.2173,4042.7,4040.6,1.6627424]
[1761479056543,0.2173,4042.7,4041.9,0.124]
[1761479056776,0.3413,4042.2,4041.9,0.124]
[1761479056924,0.50688,4042.6,4040.6,0.02474879]
[1761479057241,0.50688,4042.6,4039.6,1.63799361]
[1761479057242,0.2173,4042.7,4040.7,2.08139361]
[1761479057440,0.2173,4042.7,4040.8,0.20813936]
[1761479057645,0.3413,4042.2,4040.3,1.63799361]
[1761479057825,0.3413,4042.1,4040.1,1.63799361]
[1761479058019,0.2173,4042.7,4039.8,1.63799361]
[1761479058020,0.50688,4041.8,4039.8,1.63799361]
[1761479058244,0.50688,4041.8,4039.7,1.63799361]
[1761479058450,0.50688,4041.6,4039.4,1.63799361]
[1761479058661,0.50688,4041.6,4039.1,1.63799361]
[1761479058824,0.50688,4041.6,4037.8,0.4434]
[1761479058825,0.50688,4041.4,4038.1,1.63799361]
[1761479059030,0.50688,4041.4,4038.2,0.16379936]
[1761479059232,0.2173,4042.7,4037.6,1.63799361]
[1761479059233,0.50688,4041.2,4037.6,1.63799361]
[1761479059628,0.50688,4041.2,4036.6,3.08312146]
[1761479059629,0.50688,4041.0,4037.3,1.63799361]
[1761479059863,0.50688,4041.0,4036.8,0.4434]
[1761479059864,0.50688,4041.0,4036.8,1.63799361]
[1761479060067,0.4441,4040.9,4036.9,2.3037073]
[1761479060368,0.50688,4040.8,4036.9,0.4434]
[1761479060549,0.50688,4040.8,4037.0,0.23291022]
[1761479060751,0.50688,4040.6,4037.2,1.63799361]
[1761479060958,0.50688,4040.6,4037.5,1.63799361]
[1761479061131,0.50688,4040.4,4037.5,1.63799361]
[1761479061534,0.1121,4041.1,4037.3,1.63799361]
[1761479061535,0.50688,4040.2,4037.3,1.63799361]
[1761479061756,0.50688,4040.2,4037.4,0.16379936]
[1761479062067,0.1121,4041.1,4037.0,0.20813936]
[1761479062068,2.618,4039.9,4037.0,0.20813936]
[1761479062265,0.4441,4039.8,4037.0,0.20813936]
[1761479062858,0.4441,4039.8,4036.2,1.63799361]
[1761479063097,0.4441,4039.8,4036.0,2.17578935]
[1761479063098,0.50688,4039.7,4037.4,0.002]
[1761479063462,0.50688,4039.5,4037.4,0.002]
[1761479063785,0.50688,4039.3,4037.4,0.002]
[1761479064163,0.50688,4039.1,4037.4,0.002]
[1761479064365,0.50688,4038.9,4037.4,0.002]
[1761479064569,0.50688,4038.7,4037.4,0.002]
[1761479065002,0.50688,4038.5,4037.4,0.002]
[1761479065458,0.50688,4038.3,4037.4,0.002]
[1761479065892,0.50688,4038.1,4037.4,0.002]
[1761479066282,0.145786,4039.0,4037.4,0.002]
[1761479066283,0.50688,4037.9,4037.4,0.002]
[1761479066677,0.50688,4037.7,4037.4,0.002]
[1761479066890,0.124,4037.5,4037.4,0.002]
[1761479067094,0.4441,4039.2,4037.4,0.002]
[1761479067293,1.78999,4042.0,4037.4,0.002]
[1761479067294,0.1087,4038.7,4037.4,0.002]
[1761479067886,0.4408,4038.6,4037.4,0.002]
[1761479068282,0.50688,4038.5,4037.4,0.002]
[1761479068675,0.4408,4038.4,4037.4,0.002]
[1761479069403,0.50688,4038.3,4037.4,0.002]
[1761479070575,0.50688,4038.6,4037.4,0.002]
[1761479070781,0.94768,4038.6,4037.4,0.002]
[1761479071201,0.4408,4038.5,4037.4,0.002]
[1761479074391,0.1087,4038.7,4037.4,0.002]
[1761479075099,0.4408,4039.1,4037.4,0.002]
[1761479075100,0.5528,4039.1,4037.4,0.002]
[1761479075293,0.5528,4039.1,4037.5,0.2272]
[1761479076001,0.112,4039.1,4037.5,0.2272]
[1761479076184,0.5495,4039.1,4037.5,0.2272]
[1761479076362,0.112,4039.1,4037.5,0.2272]
[1761479076685,0.1153,4039.5,4037.5,0.6706]
[1761479077106,0.2393,4039.5,4038.9,0.124]
[1761479077613,0.6736,4039.5,4038.9,0.124]
[1761479078221,0.50688,4039.4,4038.9,0.124]
[1761479078579,0.50688,4039.2,4038.6,0.124]
[1761479078780,1.06518,4039.2,4038.6,0.124]
[1761479079218,1.06518,4039.2,4037.5,0.2272]
[1761479079219,0.50688,4039.0,4037.5,0.2272]
[1761479079419,0.50688,4039.0,4038.4,0.124]
[1761479079420,0.165956,4038.9,4038.4,0.124]
[1761479079620,0.50688,4038.8,4038.4,0.124]
[1761479079827,0.124,4038.7,4038.1,0.124]
[1761479080124,0.165956,4038.9,4037.5,0.2272]
[1761479080298,0.59438,4039.1,4037.5,0.2272]
[1761479080299,0.63088,4039.0,4038.4,0.124]
[1761479081107,0.63088,4039.0,4037.5,0.2272]
[1761479081341,0.63088,4039.0,4038.2,0.124]
[1761479082023,0.63088,4039.0,4037.5,0.2292]
[1761479082028,0.63088,4039.0,4038.4,0.124]
[1761479082524,0.4308,4038.9,4037.5,0.002]
[1761479082724,0.50688,4038.1,4037.6,0.124]
[1761479082924,0.124,4037.9,4037.5,0.002]
[1761479083317,0.93768,4037.8,4037.5,0.002]
[1761479083521,0.124,4037.6,4037.5,0.002]
[1761479083703,0.124,4037.9,4037.5,0.002]
[1761479083908,0.50688,4038.8,4037.5,0.002]
[1761479084102,3.12488,4038.6,4037.5,0.002]
[1761479084305,0.355568,4038.7,4037.5,0.002]
[1761479084306,0.72638,4037.6,4037.5,0.002]
[1761479084718,0.6482,4037.6,4037.5,0.002]
[1761479084915,1.15508,4037.6,4037.5,0.002]
[1761479087329,1.15508,4037.6,4037.4,0.002]
[1761479087330,0.50688,4037.5,4037.4,0.002]
[1761479087500,1.101776,4037.5,4037.4,0.002]
[1761479089610,0.166196,4037.5,4037.4,0.002]
[1761479089812,0.227,4038.3,4037.4,0.002]
[1761479090136,0.0875,4039.1,4037.4,0.4392]
[1761479090638,0.5087,4039.1,4037.4,0.002]
[1761479091337,0.50688,4039.0,4037.4,0.002]
[1761479091632,0.5087,4039.1,4037.4,0.002]
[1761479091842,0.92808,4039.0,4037.4,0.002]
[1761479092221,0.50688,4038.8,4037.4,0.002]
[1761479092420,0.50688,4038.6,4037.4,0.002]
[1761479092836,0.50688,4038.4,4037.4,0.002]
[1761479093241,0.50688,4038.2,4037.4,0.002]
[1761479093646,0.50688,4038.0,4037.4,0.002]
[1761479093942,0.92808,4039.0,4037.4,0.002]
[1761479094106,0.124,4037.6,4037.4,0.002]
[1761479094314,0.4212,4038.9,4037.4,0.002]
[1761479094722,0.124,4037.7,4037.4,0.002]
[1761479095141,0.50688,4037.6,4037.4,0.002]
[1761479095346,0.92808,4037.6,4037.4,0.002]
[1761479095568,0.4212,4038.6,4037.4,0.002]
[1761479095919,0.50688,4038.5,4037.4,0.002]
[1761479096444,0.4212,4038.6,4037.4,0.002]
[1761479097013,0.50688,4038.5,4037.4,0.002]
[1761479097219,0.0875,4039.1,4037.4,0.002]
[1761479097540,0.0875,4039.1,4037.5,0.4372]
[1761479097735,0.0875,4039.1,4037.6,0.20771936]
[1761479098135,0.0875,4039.1,4037.7,0.4372]
[1761479098343,0.283,4040.0,4037.7,0.4372]
[1761479098849,0.2814,4040.6,4038.4,1.63799361]
[1761479099056,0.2814,4040.6,4038.5,0.6559]
[1761479099218,0.117,4041.7,4038.7,1.63799361]
[1761479099422,0.117,4041.7,4038.6,2.22178936]
[1761479099423,0.2827,4041.6,4039.1,1.63799361]
[1761479099750,0.2827,4041.6,4038.6,4.39757871]
[1761479099751,0.2827,4041.6,4039.2,2.07519361]
[1761479100367,0.2827,4041.6,4039.3,2.09995037]
[1761479100368,0.003,4041.6,4039.3,2.09995037]
[1761479100652,0.004,4041.6,4039.8,1.63799361]
[1761479100852,0.004,4041.6,4040.2,1.63799361]
[1761479101050,0.004,4041.6,4041.5,0.2187]
[1761479101352,0.001,4042.1,4041.5,0.2187]
[1761479101652,0.001,4042.5,4041.7,1.63799361]
[1761479101851,0.001,4042.5,4042.1,1.63799361]
[1761479102054,1.35469721,4044.5,4042.2,1.63799361]
[1761479102271,1.35469721,4044.5,4043.5,0.2192]
[1761479102623,1.35469721,4044.5,4043.5,0.6531]
[1761479102819,1.35469721,4044.5,4043.5,0.2192]
[1761479103020,1.35369721,4044.5,4043.5,0.6531]
[1761479103322,1.35369721,4044.5,4042.7,0.4339]
[1761479103837,0.50688,4044.4,4042.7,0.4339]
[1761479104153,0.50688,4043.4,4041.8,0.2187]
[1761479104355,0.50688,4043.4,4041.5,0.6526]
[1761479104520,0.50688,4043.2,4041.5,0.6526]
[1761479104716,0.50688,4043.4,4041.6,0.4339]
[1761479105022,1.35369721,4044.5,4041.7,0.02474206]
[1761479105330,1.35369721,4044.5,4041.6,0.4339]
[1761479105638,0.2311,4043.8,4041.6,0.4339]
[1761479106014,0.50688,4044.0,4041.6,0.4339]
[1761479106219,0.50688,4043.7,4041.6,0.4339]
[1761479106457,0.2305,4043.8,4041.6,0.45864267]
[1761479106656,0.2305,4043.8,4041.6,0.4339]
[1761479106860,0.50688,4043.7,4041.6,0.4339]
[1761479107061,0.401,4043.8,4041.6,0.4339]
[1761479107367,0.2305,4043.8,4041.6,0.4339]
[1761479107551,0.67738,4043.7,4041.6,0.4339]
[1761479107748,0.67738,4043.7,4040.4,0.2187]
[1761479107749,0.50688,4043.4,4040.4,0.2187]
[1761479107953,0.50688,4043.4,4037.3,1.24247786]
[1761479107954,0.50688,4043.2,4038.9,1.63799361]
[1761479108290,0.50688,4043.0,4039.6,0.4339]
[1761479108435,0.171,4043.1,4039.6,0.4339]
[1761479108635,0.4015,4043.8,4039.6,0.4339]
[1761479108885,0.171,4043.5,4039.7,0.02475431]
[1761479109034,0.171,4043.5,4039.8,0.431]
[1761479109546,0.2305,4043.8,4039.8,0.431]
[1761479109746,0.1186,4046.0,4039.8,0.431]
[1761479109747,0.1726,4045.5,4043.5,0.2321]
[1761479110161,0.1186,4046.0,4043.5,0.2321]
[1761479110344,0.1726,4045.9,4043.5,0.6631]
[1761479110769,0.2288,4045.4,4043.5,0.6631]
[1761479111071,0.1748,4045.1,4043.5,0.6631]
[1761479111236,0.2288,4045.4,4043.5,0.6631]
[1761479111870,0.034,4045.8,4043.5,0.6631]
[1761479112073,0.034,4045.8,4043.6,0.431]
[1761479112257,0.034,4045.8,4043.7,0.02472982]
[1761479112461,0.034,4045.8,4043.5,0.2321]
[1761479112462,0.23425897,4044.5,4043.8,0.431]
[1761479112659,0.23425897,4044.5,4043.8,0.45572921]
[1761479112846,0.034,4045.8,4043.8,0.431]
[1761479113247,0.034,4045.8,4043.9,0.0247286]
[1761479113442,0.034,4045.8,4043.8,0.431]
[1761479113648,1.26315157,4046.9,4043.8,0.431]
[1761479113848,1.41210673,4046.9,4043.8,0.431]
[1761479114176,1.41210673,4046.9,4043.9,0.0247286]
[1761479114177,1.16415157,4046.9,4043.9,0.0247286]
[1761479114547,1.16415157,4046.9,4044.0,0.75434573]
[1761479114779,1.16415157,4046.9,4044.1,0.02472738]
[1761479114966,1.16415157,4046.9,4044.1,0.45572738]
[1761479115171,0.003,4045.7,4044.1,0.45572738]
[1761479115478,0.003,4045.7,4044.1,0.431]
[1761479115677,0.003,4045.7,4045.6,0.1232]
[1761479116183,0.003,4045.7,4045.6,0.5542]
[1761479116385,1.16415157,4046.9,4045.6,0.5542]
[1761479116551,1.16415157,4046.9,4045.5,0.2321]
[1761479116552,1.16415157,4046.9,4046.8,0.2321]
[1761479117087,1.16415157,4046.9,4046.8,0.6631]
[1761479117088,0.21415157,4046.9,4046.8,0.6631]
[1761479117287,0.4716,4048.8,4046.8,0.2321]
[1761479117462,0.00378173,4049.0,4046.9,0.02471027]
[1761479117670,0.00378173,4049.0,4046.9,0.0677]
[1761479117864,0.00378173,4049.0,4046.8,0.2321]
[1761479117865,0.00378173,4049.0,4047.0,0.02470966]
[1761479118065,1.43306028,4051.6,4047.0,0.02470966]
[1761479118066,1.43306028,4051.6,4048.6,0.00426189]
[1761479118287,1.43306028,4051.6,4048.7,0.44799164]
[1761479118288,0.14330603,4051.5,4048.7,0.44799164]
[1761479118492,1.43306028,4051.6,4048.7,0.44799164]
[1761479118493,1.43306028,4051.6,4048.9,0.50688]
[1761479118699,1.38956028,4051.6,4049.1,0.50688]
[1761479119002,1.82151114,4051.5,4046.9,1.43236254]
[1761479119217,1.82151114,4051.5,4044.9,1.2489432]
[1761479119218,0.2288,4047.0,4044.9,4.16466124]
[1761479119374,0.2288,4049.4,4045.4,2.59616543]
[1761479119552,0.97848,4049.3,4043.7,0.24728603]
[1761479119756,0.2288,4049.9,4043.8,0.02472921]
[1761479119986,0.2288,4049.9,4043.9,0.18027157]
[1761479120190,0.2288,4049.9,4043.9,0.13027157]
[1761479120393,0.2288,4049.9,4044.0,0.431]
[1761479120566,0.2288,4049.9,4044.1,0.27199507]
[1761479120767,0.124,4049.8,4044.0,0.431]
[1761479120968,0.124,4049.8,4042.3,0.1572]
[1761479120969,0.1,4048.7,4042.3,0.1572]
[1761479121162,0.2288,4044.1,4041.1,1.627]
[1761479121591,0.2288,4044.1,4041.6,0.433]
[1761479121914,0.7004,4044.1,4041.6,0.433]
[1761479122216,0.2288,4046.4,4041.6,0.433]
[1761479122217,0.2288,4044.7,4041.7,0.02474206]
[1761479122505,0.2288,4044.7,4041.6,0.433]
[1761479122817,0.4716,4045.0,4041.6,0.70516943]
[1761479123313,0.4716,4045.0,4041.7,0.70316269]
[1761479123515,0.4716,4045.0,4041.7,0.45574206]
[1761479123676,0.4716,4045.0,4041.8,0.431]
[1761479123876,0.4716,4045.7,4041.9,0.02474083]
[1761479124087,0.2288,4046.0,4042.0,0.67839615]
[1761479124406,0.7004,4046.4,4042.2,0.24739003]
[1761479124577,0.2288,4046.9,4042.4,0.24735943]
[1761479124782,0.2288,4046.9,4042.6,0.24735943]
[1761479124979,0.2288,4046.9,4042.7,0.27209537]
[1761479125180,0.4716,4047.1,4042.7,0.27209537]
[1761479125376,0.20808,4049.8,4042.9,0.24730438]
[1761479125377,0.4716,4047.8,4042.9,0.24730438]
[1761479125715,0.20808,4049.8,4042.8,1.23056013]
[1761479125716,0.4716,4048.6,4043.6,0.24726157]
[1761479125871,0.4716,4048.6,4043.0,0.97455427]
[1761479125872,0.4716,4048.6,4043.0,0.15026004]
[1761479126073,0.4716,4048.6,4043.2,0.24728603]
[1761479126305,0.4716,4048.6,4043.4,0.24728603]
[1761479126505,0.4716,4048.6,4043.5,0.02473104]
[1761479126807,0.4716,4048.6,4043.5,0.24729215]
[1761479127025,0.4716,4048.6,4043.7,0.24726157]
[1761479127168,0.4716,4049.4,4044.4,1.74021878]
[1761479127371,0.4716,4049.8,4044.6,0.24718212]
[1761479127618,0.4716,4049.8,4044.8,0.24718212]
[1761479127785,0.4716,4049.8,4045.0,0.24718212]
[1761479128314,0.4716,4049.8,4045.2,0.24720656]
[1761479128613,0.4716,4049.8,4045.4,0.24717601]
[1761479128921,0.4716,4050.5,4045.6,1.7401699]
[1761479129072,0.4716,4050.5,4045.8,0.24713325]
[1761479129271,1.31616028,4051.6,4046.0,0.24710272]
[1761479129272,0.2288,4051.2,4046.0,0.24710272]
[1761479129509,0.2288,4050.6,4046.0,0.24710272]
[1761479129709,0.4716,4050.5,4046.1,0.431]
[1761479129905,0.50688,4050.4,4046.1,0.45571515]
[1761479130303,0.4716,4050.3,4046.1,0.431]
[1761479130503,0.4716,4050.3,4046.2,0.02471454]
[1761479130728,0.50688,4050.2,4046.1,0.431]
[1761479131236,0.50688,4050.0,4046.1,0.431]
[1761479131622,0.50688,4049.8,4046.1,0.431]
[1761479131824,0.50688,4049.8,4045.2,0.1572]
[1761479131825,0.50688,4049.6,4045.3,0.431]
[1761479132029,0.50688,4049.4,4045.3,0.431]
[1761479132232,0.50688,4049.4,4045.4,0.02471943]
[1761479132418,0.50688,4049.2,4045.4,0.02471943]
[1761479132611,0.50688,4049.2,4045.5,0.431]
[1761479132949,0.50688,4049.0,4045.5,0.431]
[1761479133104,0.50688,4049.0,4045.6,0.02471821]
[1761479133312,0.50688,4048.8,4045.3,0.431]
[1761479133820,0.50688,4048.6,4045.2,0.1572]
[1761479134019,0.4716,4048.5,4045.3,0.431]
[1761479134319,0.50688,4048.4,4045.3,0.431]
[1761479134842,0.50688,4048.2,4045.3,0.431]
[1761479135441,0.50688,4048.0,4045.3,0.431]
[1761479136040,0.50688,4047.8,4045.3,0.431]
[1761479136336,0.4716,4047.9,4045.3,0.431]
[1761479136507,0.1232,4047.8,4047.3,0.1232]
[1761479136708,0.4716,4047.9,4047.3,0.1232]
[1761479136903,0.4716,4047.8,4045.3,0.431]
[1761479137137,0.1232,4047.6,4047.1,0.1232]
[1761479137314,0.50688,4048.0,4045.3,0.431]
[1761479137315,0.2288,4047.2,4045.3,0.431]
[1761479137724,0.50688,4048.6,4045.3,0.431]
[1761479138048,0.50688,4048.6,4042.6,2.93982765]
[1761479138247,0.50688,4048.6,4041.6,0.002]
[1761479138248,0.50688,4045.3,4042.3,0.431]
[1761479138448,0.50688,4045.3,4041.6,2.94182765]
[1761479138449,0.2288,4045.4,4043.2,0.02473288]
[1761479138621,0.2288,4045.4,4043.2,0.49923288]
[1761479138821,0.2184,4046.0,4043.2,0.49923288]
[1761479139023,0.2184,4046.5,4043.3,1.493]
[1761479139236,0.4542,4046.9,4043.7,1.493]
[1761479139437,0.4542,4046.9,4043.8,0.02472921]
[1761479139655,0.4542,4047.6,4044.0,1.99988]
[1761479140126,0.4542,4047.6,4044.2,1.99988]
[1761479140323,0.4542,4047.6,4044.3,0.02472615]
[1761479140522,0.4542,4047.6,4044.4,0.24991061]
[1761479140845,0.4542,4047.6,4044.5,0.02472493]
[1761479141013,0.4542,4047.6,4044.5,0.49922493]
[1761479141217,0.4542,4047.6,4044.6,1.99988]
[1761479141426,0.2288,4047.7,4044.7,0.02472371]
[1761479141622,0.2288,4047.7,4044.9,1.99988]
[1761479141828,0.4542,4048.3,4044.9,1.99988]
[1761479141829,0.4542,4048.3,4045.0,0.02472187]
[1761479142033,0.683,4048.7,4045.1,1.99988]
[1761479142234,0.683,4048.7,4045.2,0.02472065]
[1761479142458,0.683,4048.7,4045.3,1.9675]
[1761479142459,0.4542,4048.6,4045.3,1.9675]
[1761479142613,0.4542,4048.6,4045.4,0.24991007]
[1761479142809,0.4542,4048.6,4045.4,0.72441007]
[1761479143059,0.4542,4048.6,4045.5,0.02471882]
[1761479143213,0.4542,4048.6,4045.6,0.4745]
[1761479143658,0.96108,4048.6,4045.7,0.0247176]
[1761479143842,0.4542,4048.6,4045.7,0.0247176]
[1761479144149,0.4542,4048.5,4045.8,0.4745]
[1761479144315,0.4542,4048.5,4045.9,0.02471637]
[1761479144727,0.4542,4048.5,4045.8,0.4745]
[1761479145424,0.4542,4048.5,4045.1,0.4745]
[1761479145643,0.50688,4048.4,4044.7,0.1675]
[1761479145846,0.2184,4044.8,4043.7,0.38667216]
[1761479146217,0.2184,4044.8,4043.7,1.5552]
[1761479146430,0.4542,4044.7,4043.7,1.5552]
[1761479146635,0.4542,4044.7,4042.4,0.38694205]
[1761479146836,0.4542,4044.7,4041.7,0.4745]
[1761479146837,0.50688,4044.6,4041.7,0.4745]
[1761479147263,0.50688,4044.4,4043.6,35.76779769]
[1761479147413,0.63088,4043.7,4043.6,35.76779769]
[1761479147624,0.63088,4043.7,4043.6,35.35899769]
[1761479147925,0.124,4043.7,4043.6,35.35899769]
[1761479148332,0.124,4043.8,4043.6,35.35899769]
[1761479148736,0.50688,4043.7,4043.6,35.35899769]
[1761479148939,0.124,4043.8,4043.6,35.35899769]
[1761479149148,0.50688,4044.7,4043.6,35.35899769]
[1761479149361,0.2184,4043.7,4043.6,35.35899769]
[1761479150646,0.2184,4043.7,4043.6,23.79849653]
[1761479150846,4.58628,4043.7,4043.6,14.53975398]
[1761479151046,6.66815193,4043.7,4043.6,11.82914312]
[1761479151246,6.66815193,4043.7,4043.6,11.27259857]
[1761479151553,6.66815193,4043.7,4043.6,9.72709369]
[1761479151723,6.66815193,4043.7,4043.6,8.57912688]
[1761479151926,6.66515193,4043.7,4043.6,6.57989948]
[1761479152438,2.80715193,4043.7,4043.6,6.57989948]
[1761479152752,6.66174797,4043.7,4043.6,6.57989948]
[1761479152924,2.28048,4043.7,4043.6,6.57989948]
[1761479153128,6.13748,4043.7,4043.6,4.46401069]
[1761479153328,6.66209632,4043.7,4043.6,4.46401069]
[1761479153528,6.66209632,4043.7,4043.6,3.72201497]
[1761479154035,6.90939458,4043.7,4043.6,2.98001925]
[1761479154254,6.66209632,4043.7,4043.6,2.98001925]
[1761479154453,6.66209632,4043.7,4043.6,2.23802353]
[1761479154655,6.66209632,4043.7,4041.6,0.002]
[1761479154656,0.50688,4043.3,4041.6,0.002]
[1761479154854,0.72528,4041.7,4041.6,0.002]
[1761479155167,0.2184,4041.7,4041.6,0.002]
[1761479157852,6.12948,4041.7,4041.6,0.002]
[1761479158234,2.28048,4041.7,4041.6,0.002]
[1761479158440,0.72528,4041.7,4041.6,0.002]
[1761479158736,0.4519,4041.7,4041.6,0.002]
[1761479159082,0.2184,4042.2,4041.6,0.002]
[1761479159437,0.2184,4043.7,4041.6,0.002]
[1761479159438,0.2335,4043.1,4041.6,0.002]
[1761479159641,0.4519,4043.7,4041.6,0.002]
[1761479160078,0.2184,4043.7,4041.6,0.4765]
[1761479160238,0.2335,4043.6,4041.6,0.4765]
[1761479160747,0.2184,4044.1,4041.6,0.4765]
[1761479161148,0.001,4044.2,4041.7,0.53162206]
[1761479161348,0.001,4044.2,4041.7,0.50688]
[1761479161547,0.001,4044.2,4041.8,0.4745]
[1761479161763,0.001,4044.2,4041.9,0.53162083]
[1761479161961,0.001,4044.2,4042.1,0.50688]
[1761479162162,0.001,4044.2,4042.2,0.14682008]
[1761479162369,0.001,4044.2,4042.3,0.4297]
[1761479163046,0.001,4044.2,4042.4,0.50688]
[1761479163266,0.2226,4044.1,4042.5,0.4297]
[1761479163579,0.001,4044.2,4041.6,0.002]
[1761479163580,0.001,4044.2,4041.9,0.4297]
[1761479164242,0.001,4044.2,4042.0,0.53162022]
[1761479164437,0.001,4044.2,4044.1,0.226]
[1761479164668,0.001,4044.2,4044.1,0.6557]
[1761479165840,0.001,4044.2,4042.8,0.4297]
[1761479166040,0.001,4044.2,4043.7,0.226]
[1761479166734,0.001,4044.2,4042.8,0.4297]
[1761479166971,0.001,4044.2,4043.3,0.226]
[1761479167310,0.001,4044.2,4042.9,0.02473472]
[1761479167601,0.2226,4043.0,4040.9,0.4297]
[1761479167980,0.2226,4043.0,4038.4,0.25076228]
[1761479167981,0.50688,4042.8,4039.2,0.4297]
[1761479168304,0.2226,4043.0,4038.4,0.226]
[1761479168305,0.2252,4042.7,4039.8,0.4297]
[1761479168476,0.50688,4042.6,4039.2,0.4545]
[1761479168819,0.50688,4042.6,4039.1,0.4545]
[1761479168981,0.2252,4042.5,4039.1,0.4545]
[1761479169179,0.124,4041.7,4040.5,0.124]
[1761479169508,0.2252,4042.5,4039.5,0.4545]
[1761479169676,0.2252,4042.4,4039.5,0.4545]
[1761479170004,0.2252,4042.4,4038.9,0.4545]
[1761479170208,0.50688,4042.2,4038.9,0.4545]
[1761479170572,0.50688,4042.0,4038.9,0.4545]
[1761479170873,0.50688,4042.0,4039.3,0.0171738]
[1761479171074,0.50688,4041.8,4039.3,0.0171738]
[1761479171584,0.73208,4041.7,4039.3,0.0171738]
[1761479172102,0.2252,4041.7,4039.3,0.2323738]
[1761479172267,0.4436,4041.7,4039.3,0.2323738]
[1761479172471,0.95048,4041.7,4039.3,0.2323738]
[1761479172711,0.95048,4041.7,4039.3,0.0171738]
[1761479172872,2.50568,4041.7,4039.3,0.0171738]
[1761479173067,4.79048,4041.7,4039.3,0.0171738]
[1761479173384,6.34368,4041.7,4039.3,0.0171738]
[1761479174304,6.87012406,4041.7,4039.3,0.0171738]
[1761479174676,6.87012406,4041.7,4040.7,0.002]
[1761479174896,2.52524406,4041.7,4040.7,0.002]
[1761479175097,2.52524406,4041.7,4041.1,0.88479318]
[1761479175098,2.28718,4041.6,4041.1,0.88479318]
[1761479175298,0.24746962,4041.3,4041.1,0.88479318]
[1761479175483,1.38600342,4041.2,4041.1,0.88479318]
[1761479175803,1.25842406,4041.2,4041.1,0.88479318]